bitfinex-derivatives/quotes_SOLF0:USTF0_20250820
["timestamp","ask_amount","ask_price","bid_price","bid_amount"]
[1755700157032,5.5637,179.73,179.68,5.565]
[1755700157226,8.29495655,179.79,179.65,2.87]
[1755700157828,5.5631,179.75,179.7,5.5644]
[1755700158030,8.29495655,179.79,179.65,2.87]
[1755700158834,8.29495655,179.79,179.69,2.87]
[1755700159135,148.16,179.81,179.6,4.62665969]
[1755700159330,8.29495655,179.78,179.6,4.62665969]
[1755700159536,8.29495655,179.78,179.62,2.87]
[1755700159938,8.29495655,179.78,179.66,2.87]
[1755700161434,8.29495655,179.78,179.68,5.5648]
[1755700161736,8.29495655,179.78,179.66,2.87]
[1755700162333,8.29495655,179.78,179.61,2.87]
[1755700162735,25.04495655,179.78,179.61,2.87]
[1755700162934,8.29495655,179.73,179.61,2.87]
[1755700163239,8.29495655,179.73,179.57,2.87]
[1755700163635,8.29495655,179.73,179.57,8.4384]
[1755700163941,8.29495655,179.68,179.57,2.87]
[1755700164232,8.29495655,179.68,179.52,2.87]
[1755700164832,25.04495655,179.68,179.52,2.87]
[1755700165234,8.29495655,179.66,179.52,2.87]
[1755700165435,8.29495655,179.71,179.52,2.87]
[1755700165636,156.37495655,179.71,179.52,7.49665969]
[1755700165840,156.37495655,179.71,179.58,5.5681]
[1755700166038,156.37495655,179.71,179.57,2.93]
[1755700166438,164.83,179.71,179.52,2.93]
[1755700166629,8.29495655,179.66,179.52,2.93]
[1755700167143,148.08,179.71,179.52,2.93]
[1755700167445,148.08,179.72,179.52,2.93]
[1755700167743,373.9,179.74,179.57,4.62665969]
[1755700167941,373.9,179.74,179.58,2.93]
[1755700168838,373.9,179.74,179.64,5.5661]
[1755700169142,382.19495655,179.74,179.58,2.93]
[1755700169738,373.9,179.74,179.58,2.93]
[1755700170039,8.29495655,179.72,179.58,2.93]
[1755700171345,8.29495655,179.72,179.54,2.93]
[1755700171935,149.86,179.71,179.54,2.93]
[1755700172136,8.29495655,179.62,179.47,4.62665969]
[1755700172436,373.9,179.74,179.43,2.93]
[1755700172437,8.29495655,179.57,179.43,2.93]
[1755700173238,150.86,179.6,179.43,2.93]
[1755700173441,374.0,179.61,179.43,2.93]
[1755700173642,524.86,179.61,179.43,2.93]
[1755700173838,8.29495655,179.58,179.43,2.93]
[1755700174042,150.88,179.57,179.43,2.93]
[1755700174241,151.36,179.57,179.43,2.93]
[1755700174639,151.36,179.57,179.48,5.571]
[1755700174945,156.19558205,179.59,179.43,2.93]
[1755700176643,4.91558205,179.59,179.43,2.93]
[1755700176836,151.16,179.58,179.49,5.5707]
[1755700177037,151.16,179.58,179.47,2.93]
[1755700177335,151.16,179.58,179.48,5.5712]
[1755700178346,151.16,179.58,179.47,2.93]
[1755700179045,374.0,179.61,179.47,2.93]
[1755700179242,524.9,179.61,179.47,2.93]
[1755700179445,374.0,179.61,179.48,2.93]
[1755700179842,374.0,179.61,179.48,7.84558205]
[1755700180047,374.0,179.61,179.56,8.4986]
[1755700180245,374.0,179.61,179.43,4.62665969]
[1755700180246,374.0,179.61,179.49,2.93]
[1755700181047,150.9,179.6,179.5,5.5706]
[1755700181252,150.9,179.6,179.45,2.93]
[1755700181253,155.81558205,179.6,179.45,2.93]
[1755700181747,4.91558205,179.56,179.45,2.93]
[1755700181948,4.91558205,179.52,179.36,121.23402924]
[1755700182141,155.65558205,179.52,179.37,2.93]
[1755700182537,150.74,179.52,179.37,2.93]
[1755700182740,150.74,179.52,179.36,121.23402924]
[1755700182741,4.91558205,179.58,179.4,2.93]
[1755700182944,374.0,179.61,179.44,2.93]
[1755700183149,374.0,179.61,179.54,5.5691]
[1755700183447,374.0,179.61,179.48,2.93]
[1755700184950,374.0,179.61,179.52,5.5698]
[1755700185153,374.0,179.61,179.48,2.93]
[1755700185452,4.91558205,179.58,179.5,5.5704]
[1755700185952,4.91558205,179.58,179.42,2.93]
[1755700186249,4.91558205,179.54,179.42,2.93]
[1755700186448,5.5708,179.5,179.44,5.5723]
[1755700186652,5.5708,179.5,179.42,2.93]
[1755700187039,5.5711,179.49,179.43,5.5728]
[1755700187450,5.572,179.46,179.38,2.93]
[1755700187648,4.91558205,179.5,179.38,2.93]
[1755700188048,4.91558205,179.53,179.38,2.93]
[1755700188247,150.3,179.52,179.38,2.93]
[1755700188652,5.57,179.52,179.43,2.93]
[1755700188848,4.91558205,179.57,179.43,2.93]
[1755700189151,5.5697,179.54,179.48,5.5711]
[1755700189351,5.5697,179.54,179.43,2.93]
[1755700189548,150.28,179.56,179.43,2.93]
[1755700189753,5.5698,179.53,179.47,5.5713]
[1755700189952,150.28,179.56,179.47,5.5713]
[1755700190248,150.28,179.56,179.46,5.5718]
[1755700190558,150.28,179.56,179.43,2.93]
[1755700190851,5.5702,179.52,179.47,5.5713]
[1755700191549,5.5698,179.53,179.48,5.5712]
[1755700191956,150.28,179.56,179.43,2.93]
[1755700192652,378.91558205,179.61,179.43,2.93]
[1755700192855,149.9,179.6,179.43,2.93]
[1755700193047,5.5684,179.58,179.53,5.5697]
[1755700193449,149.9,179.6,179.49,2.93]
[1755700193650,149.9,179.6,179.52,5.5697]
[1755700193846,149.9,179.6,179.49,2.93]
[1755700194357,4.91558205,179.58,179.43,2.93]
[1755700194852,374.0,179.61,179.39,2.93]
[1755700195057,374.0,179.61,179.43,2.93]
[1755700195259,374.0,179.61,179.55,5.5689]
[1755700195449,374.0,179.61,179.52,2.93]
[1755700196463,374.0,179.61,179.52,8.4999]
[1755700196757,374.0,179.61,179.47,2.9]
[1755700197548,374.0,179.61,179.53,5.5695]
[1755700197746,374.0,179.61,179.51,2.9]
[1755700199557,4.91558205,179.64,179.51,2.9]
[1755700199558,149.52,179.64,179.51,2.9]
[1755700199760,4.91558205,179.68,179.51,2.9]
[1755700199957,149.52,179.67,179.51,2.9]
[1755700200255,149.52,179.67,179.5,4.91558205]
[1755700200460,374.32,179.71,179.56,2.9]
[1755700201054,524.0,179.71,179.59,2.9]
[1755700201753,5.5653,179.68,179.59,2.9]
[1755700201953,524.0,179.71,179.59,2.9]
[1755700202352,524.0,179.71,179.55,2.9]
[1755700202559,4.91558205,179.69,179.55,2.9]
[1755700202763,524.0,179.71,179.55,2.9]
[1755700203054,524.0,179.71,179.6,2.9]
[1755700203251,523.96,179.71,179.6,2.9]
[1755700203452,523.96,179.71,179.63,5.5664]
[1755700203652,523.96,179.71,179.6,2.9]
[1755700203852,374.32,179.71,179.63,5.5665]
[1755700204251,374.32,179.71,179.6,2.9]
[1755700204455,4.91558205,179.77,179.6,2.9]
[1755700204657,374.22,179.81,179.63,2.9]
[1755700204953,149.62,179.83,179.65,2.9]
[1755700205355,5.5626,179.76,179.65,2.9]
[1755700205553,4.91558205,179.81,179.65,2.9]
[1755700205753,149.72,179.81,179.65,2.9]
[1755700205963,149.72,179.81,179.64,4.91558205]
[1755700206153,85.50270552,179.86,179.66,2.9]
[1755700206353,149.66,179.85,179.69,2.9]
[1755700206561,4.91558205,179.78,179.64,2.9]
[1755700206861,149.64,179.77,179.64,2.9]
[1755700207163,4.91558205,179.82,179.65,2.9]
[1755700207463,149.74,179.8,179.65,2.9]
[1755700208357,4.91558205,179.78,179.65,2.9]
[1755700208666,4.91558205,179.78,179.59,5.5678]
[1755700208667,4.91558205,179.74,179.59,5.5678]
[1755700208857,149.84,179.73,179.58,2.9]
[1755700209164,4.91558205,179.7,179.58,2.9]
[1755700209362,4.91558205,179.73,179.58,2.9]
[1755700209561,374.16,179.78,179.58,2.9]
[1755700209867,523.86,179.78,179.61,2.9]
[1755700210559,4.91558205,179.84,179.65,2.9]
[1755700210957,85.50270552,179.86,179.69,2.9]
[1755700211267,524.64,179.88,179.76,2.9]
[1755700211766,524.64,179.88,179.8,5.5611]
[1755700211956,524.64,179.88,179.76,2.9]
[1755700212268,4.91558205,179.86,179.69,2.9]
[1755700212655,529.55558205,179.88,179.69,2.9]
[1755700212858,529.55558205,179.88,179.71,2.9]
[1755700213264,524.64,179.88,179.76,5.5624]
[1755700213466,524.64,179.88,179.71,2.9]
[1755700213660,374.08,179.88,179.71,2.9]
[1755700213867,4.91558205,179.91,179.79,2.9]
[1755700214068,150.82,179.9,179.79,2.9]
[1755700214779,476.12108366,179.98,179.79,2.9]
[1755700214780,4.91558205,179.95,179.79,2.9]
[1755700214961,150.84,179.94,179.79,2.9]
[1755700215764,4.91558205,179.91,179.73,2.9]
[1755700216472,150.84,179.94,179.73,2.9]
[1755700216661,4.91558205,179.86,179.73,2.9]
[1755700216868,150.78,179.85,179.73,2.9]
[1755700217065,459.37108366,179.98,179.73,2.9]
[1755700217066,150.78,179.88,179.73,2.9]
[1755700217471,4.91558205,179.89,179.73,2.9]
[1755700217671,4.91558205,179.89,179.73,4.91558205]
[1755700217882,150.82,179.9,179.74,2.9]
[1755700218369,459.37108366,179.98,179.74,2.9]
[1755700218565,4.91558205,179.94,179.74,2.9]
[1755700218872,150.96,179.94,179.78,2.9]
[1755700219070,150.96,179.94,179.87,5.5592]
[1755700219377,150.96,179.94,179.83,2.9]
[1755700219669,150.96,179.94,179.89,5.5584]
[1755700220062,373.86,180.08,179.85,4.91558205]
[1755700220265,4.91558205,180.04,179.86,2.9]
[1755700220474,4.91558205,180.02,179.86,2.9]
[1755700220667,4.91558205,180.02,179.91,5.5577]
[1755700220970,151.02,180.07,179.86,2.9]
[1755700221169,4.91558205,180.01,179.86,2.9]
[1755700221368,4.91558205,180.04,179.86,2.9]
[1755700221678,378.77558205,180.08,179.87,2.9]
[1755700222160,373.86,180.08,179.91,2.9]
[1755700222970,373.86,180.08,179.93,2.9]
[1755700223271,130.03184447,180.3,179.93,2.9]
[1755700223272,373.78,180.19,179.93,2.9]
[1755700223471,8.2676073,180.22,179.98,8.2676073]
[1755700223667,151.62,180.21,179.99,2.9]
[1755700223870,9.23401894,180.22,179.99,2.9]
[1755700224069,151.62,180.21,179.99,2.9]
[1755700224572,151.62,180.21,180.0,2.9]
[1755700224874,152.76,180.2,180.0,2.9]
[1755700225275,373.64,180.29,180.01,2.9]
[1755700225471,373.64,180.29,180.06,2.9]
[1755700225674,373.64,180.42,180.21,5.5487]
[1755700225871,8.2676073,180.39,180.12,2.92]
[1755700226176,152.94,180.38,180.12,2.92]
[1755700226576,161.2076073,180.38,180.12,2.92]
[1755700227277,152.94,180.37,180.16,2.92]
[1755700228174,373.64,180.39,180.16,2.92]
[1755700228376,8.2676073,180.36,180.16,2.92]
[1755700228577,152.92,180.35,180.16,2.92]
[1755700228977,8.2676073,180.31,180.1,2.92]
[1755700229778,8.2676073,180.26,180.1,2.92]
[1755700229977,152.98,180.25,180.1,2.92]
[1755700230168,373.26,180.28,180.1,2.92]
[1755700230366,0.96548663,180.39,180.1,2.92]
[1755700230367,153.24,180.27,180.1,2.92]
[1755700230569,153.24,180.26,180.1,2.92]
[1755700230784,8.2676073,180.24,180.04,2.92]
[1755700231179,8.2676073,180.24,179.97,8.2676073]
[1755700231180,8.2676073,180.19,179.99,2.92]
[1755700231482,8.2676073,180.14,179.99,2.92]
[1755700231678,153.28,180.13,179.99,2.92]
[1755700231871,153.3,180.12,179.92,373.26]
[1755700232078,8.2676073,180.09,179.93,2.92]
[1755700232486,8.2676073,180.09,179.87,2.92]
[1755700233070,8.2676073,180.09,179.89,5.5585]
[1755700233380,8.2676073,180.04,179.87,2.92]
[1755700233675,153.38,180.03,179.87,2.92]
[1755700233878,153.38,180.03,179.81,376.18]
[1755700234079,153.3,180.02,179.89,5.5586]
[1755700234383,8.2676073,180.09,179.88,2.92]
[1755700234880,153.38,180.08,179.91,5.558]
[1755700235084,153.38,180.08,179.88,2.92]
[1755700235382,8.2676073,180.04,179.88,2.92]
[1755700235583,153.34,180.03,179.88,2.92]
[1755700235975,153.28,180.02,179.88,2.92]
[1755700236173,8.2676073,180.04,179.88,2.92]
[1755700236383,497.26,180.14,179.88,2.92]
[1755700236384,85.78629551,180.16,179.88,2.92]
[1755700236592,8.2676073,180.14,179.91,2.92]
[1755700237180,153.32,180.13,179.91,2.92]
[1755700237375,8.2676073,180.09,179.91,2.92]
[1755700237781,85.78629551,180.16,179.91,2.92]
[1755700237782,8.2676073,180.04,179.91,2.92]
[1755700238884,153.26,180.03,179.85,2.92]
[1755700239080,381.5676073,180.04,179.85,2.92]
[1755700239279,153.28,180.03,179.85,2.92]
[1755700239790,381.5676073,180.04,179.85,2.92]
[1755700239987,153.32,180.03,179.85,2.92]
[1755700241192,8.2676073,179.99,179.85,2.92]
[1755700241585,8.2676073,179.99,179.76,2.92]
[1755700241788,8.2676073,179.94,179.76,2.92]
[1755700242488,153.34,179.93,179.73,2.92]
[1755700242688,8.2676073,179.94,179.73,2.92]
[1755700242894,153.34,179.93,179.78,2.92]
[1755700243094,153.32,179.92,179.78,2.92]
[1755700243295,153.32,179.91,179.79,5.5615]
[1755700243483,526.68,179.91,179.73,2.92]
[1755700243686,373.36,179.91,179.73,2.92]
[1755700243991,153.28,179.9,179.73,2.92]
[1755700244294,373.36,179.91,179.73,2.92]
[1755700244492,153.26,179.9,179.71,2.92]
[1755700244896,526.54,179.91,179.76,2.92]
[1755700245097,534.8076073,179.91,179.76,2.92]
[1755700245290,534.8076073,179.91,179.71,2.92]
[1755700245997,8.2676073,179.86,179.71,2.92]
[1755700246498,153.1,179.85,179.71,2.92]
[1755700247000,0.0406603,179.8,179.76,0.03889107]
[1755700247190,0.0406603,179.8,179.76,2.95889107]
[1755700247592,0.0406603,179.8,179.76,8.52159107]
[1755700247795,153.1,179.87,179.79,2.92]
[1755700248000,373.36,179.91,179.79,2.92]
[1755700249196,373.36,179.91,179.83,5.59571817]
[1755700249400,526.4,179.91,179.83,0.03531817]
[1755700249901,526.4,179.91,179.84,5.5601]
[1755700250102,373.36,179.91,179.84,2.92]
[1755700250302,152.92,179.94,179.84,2.92]
[1755700250804,152.92,179.94,179.86,5.5593]
[1755700251304,152.98,179.98,179.9,5.5583]
[1755700251507,373.56,180.0,179.87,2.96085881]
[1755700251707,527.36,180.0,179.87,2.96085881]
[1755700252003,527.36,180.0,179.87,2.92]
[1755700252204,527.36,180.0,179.92,0.0392828]
[1755700253602,153.62,179.99,179.92,0.0392828]
[1755700253803,373.56,180.0,179.92,0.0392828]
[1755700253804,153.56,179.98,179.92,0.0392828]
[1755700254003,373.56,180.0,179.92,0.0392828]
[1755700254207,153.56,179.97,179.92,0.0392828]
[1755700254699,153.5,179.96,179.92,0.0392828]
[1755700255311,153.5,179.96,179.81,2.92]
[1755700255513,153.5,179.96,179.83,5.5605]
[1755700255808,153.5,179.96,179.81,2.92]
[1755700256602,153.34,179.95,179.81,2.92]
[1755700256813,373.56,180.0,179.81,2.92]
[1755700257007,153.44,179.99,179.81,2.92]
[1755700257306,153.44,179.99,179.89,5.5584]
[1755700257609,153.44,179.99,179.87,2.89]
[1755700257806,153.44,179.99,179.88,5.5588]
[1755700258003,153.44,179.99,179.87,2.89]
[1755700258796,373.56,180.0,179.88,5.5587]
[1755700259201,373.56,180.0,179.87,2.89]
[1755700259202,153.2,179.99,179.87,8.4492]
[1755700259709,153.2,179.99,179.82,2.89]
[1755700259909,8.2676073,179.99,179.82,2.89]
[1755700260205,153.1,179.98,179.82,2.89]
[1755700260710,8.2676073,179.94,179.82,2.89]
[1755700260911,373.56,180.0,179.82,2.89]
[1755700261104,153.06,179.99,179.82,2.89]
[1755700261409,8.2676073,179.97,179.87,2.89]
[1755700261907,8.2676073,179.97,179.76,2.89]
[1755700262108,153.18,179.96,179.76,2.89]
[1755700262306,2133.89184447,180.12,179.73,11.1266]
[1755700262307,16.75,180.11,179.8,8.2676073]
[1755700262506,16.75,180.11,179.81,2.89]
[1755700262507,8.2676073,180.06,179.81,2.89]
[1755700262702,8.2676073,180.06,179.83,2.89]
[1755700262907,8.2676073,180.06,179.94,5.5571]
[1755700263105,8.2676073,180.06,179.92,2.89]
[1755700263305,8.2676073,180.06,179.83,2.89]
[1755700263504,8.2676073,180.06,179.91,5.558]
[1755700263702,8.2676073,180.06,179.89,2.89]
[1755700263908,8.2676073,180.06,179.92,5.5577]
[1755700264105,8.2676073,180.06,179.89,2.89]
[1755700264510,153.3,180.05,179.94,2.89]
[1755700265206,153.3,180.05,179.86,2.89]
[1755700265709,373.52,180.1,179.86,2.89]
[1755700265911,153.24,180.09,179.86,2.89]
[1755700266308,161.5076073,180.09,179.86,2.89]
[1755700266604,178.2576073,180.09,179.86,2.89]
[1755700267307,8.2676073,180.04,179.86,2.89]
[1755700267605,169.91,180.03,179.86,2.89]
[1755700267808,8.2676073,179.99,179.86,2.89]
[1755700268012,16.75,180.09,179.86,2.89]
[1755700268207,153.02,180.08,179.83,8.2676073]
[1755700268404,153.02,180.08,179.91,2.89]
[1755700268809,16.75,180.09,179.91,2.89]
[1755700269009,153.0,180.08,179.91,2.89]
[1755700269909,169.75,180.08,179.93,5.5573]
[1755700270106,373.52,180.1,179.91,2.89]
[1755700270518,373.52,180.1,179.94,8.2676073]
[1755700270812,152.92,180.12,179.95,2.89]
[1755700271211,85.78629551,180.16,179.95,2.89]
[1755700271415,152.84,180.15,179.95,2.89]
[1755700272013,85.78629551,180.16,179.95,2.89]
[1755700272212,152.82,180.15,179.95,2.89]
[1755700272514,152.82,180.15,179.94,12.86488871]
[1755700272717,152.78,180.15,180.05,2.89]
[1755700274005,85.78629551,180.16,180.05,2.89]
[1755700274208,152.78,180.17,180.05,2.89]
[1755700274619,152.78,180.17,180.11,5.5516]
[1755700274913,152.78,180.17,180.05,2.89]
[1755700275109,373.48,180.2,180.13,5.5511]
[1755700275415,373.48,180.2,180.11,2.89]
[1755700275611,152.8,180.22,180.16,5.55]
[1755700275818,152.8,180.22,180.11,2.89]
[1755700276119,373.32,180.3,180.11,2.89]
[1755700276316,152.74,180.29,180.11,2.89]
[1755700276513,373.32,180.3,180.11,2.89]
[1755700276816,152.7,180.29,180.11,2.89]
[1755700277321,152.7,180.29,180.2,5.5488]
[1755700277518,152.7,180.29,180.17,2.89]
[1755700278117,152.7,180.29,180.1,2.89]
[1755700278118,8.2676073,180.28,180.1,2.89]
[1755700278315,152.7,180.29,180.1,2.89]
[1755700278316,152.54,180.27,180.1,2.89]
[1755700278717,8.2676073,180.24,180.1,2.89]
[1755700278917,8.2676073,180.26,180.1,2.89]
[1755700279121,152.54,180.25,180.1,2.89]
[1755700279419,152.62,180.24,180.1,2.89]
[1755700279616,152.58,180.23,180.1,2.89]
[1755700280619,8.2676073,180.25,180.1,2.89]
[1755700280818,8.2676073,180.25,180.04,373.32]
[1755700280819,152.76,180.22,180.05,2.89]
[1755700281226,8.2676073,180.2,180.05,2.89]
[1755700281414,8.2676073,180.2,179.98,2.89]
[1755700281618,8.2676073,180.15,179.98,2.89]
[1755700282118,373.14,180.17,180.09,5.5523]
[1755700282327,373.14,180.17,180.06,2.89]
[1755700282328,153.0,180.16,180.06,2.89]
[1755700282525,84.87355878,180.22,180.06,2.89]
[1755700282718,153.0,180.21,180.06,2.89]
[1755700282918,373.14,180.27,180.06,2.89]
[1755700283125,153.06,180.26,180.06,2.89]
[1755700284022,373.14,180.27,180.06,2.89]
[1755700284227,152.98,180.26,180.06,2.89]
[1755700284424,373.14,180.27,180.11,2.89]
[1755700284725,152.94,180.26,180.11,2.89]
[1755700285426,152.94,180.26,180.19,5.5491]
[1755700285625,152.94,180.26,180.15,2.89]
[1755700286017,152.94,180.26,180.16,5.5502]
[1755700286218,373.14,180.27,180.15,2.89]
[1755700286425,152.74,180.26,180.19,5.5491]
[1755700286827,152.74,180.26,180.15,2.89]
[1755700288120,152.74,180.26,180.03,73.1079]
[1755700288121,152.74,180.26,180.1,3.05]
[1755700288825,152.54,180.25,180.1,3.05]
[1755700289225,373.14,180.27,180.14,8.2676073]
[1755700289428,152.68,180.3,180.15,3.05]
[1755700289734,152.68,180.3,180.2,3.05]
[1755700290127,152.68,180.3,180.23,5.5479]
[1755700290336,152.68,180.3,180.2,3.05]
[1755700290532,152.68,180.3,180.22,5.5481]
[1755700290830,152.68,180.3,180.2,3.05]
[1755700291029,152.68,180.3,180.23,5.5478]
[1755700291239,152.68,180.3,180.2,3.05]
[1755700291830,152.68,180.3,180.15,3.05]
[1755700292134,152.68,180.3,180.18,5.5494]
[1755700292433,152.68,180.3,180.15,3.05]
[1755700292630,8.2676073,180.33,180.16,5.5502]
[1755700292829,8.2676073,180.28,180.15,3.05]
[1755700293027,8.2676073,180.33,180.15,3.05]
[1755700293227,152.44,180.32,180.15,3.05]
[1755700293423,8.2676073,180.35,180.15,3.05]
[1755700293628,373.1,180.37,180.15,3.05]
[1755700293838,152.48,180.36,180.19,3.05]
[1755700294923,373.1,180.37,180.19,3.05]
[1755700295124,373.1,180.37,180.19,11.3176073]
[1755700295328,152.38,180.36,180.2,3.05]
[1755700295835,152.38,180.36,180.27,3.05]
[1755700296134,525.4,180.37,180.27,3.05]
[1755700296334,373.1,180.37,180.27,3.05]
[1755700296535,152.24,180.41,180.27,3.05]
[1755700296836,152.24,180.41,180.36,5.544]
[1755700297040,372.92,180.48,180.31,3.05]
[1755700297235,152.18,180.47,180.31,3.05]
[1755700297426,152.18,180.47,180.36,3.05]
[1755700297831,152.18,180.47,180.38,5.5432]
[1755700298032,152.18,180.47,180.36,3.05]
[1755700298235,372.92,180.48,180.36,3.05]
[1755700298437,525.0,180.48,180.36,3.05]
[1755700298627,8.2676073,180.59,180.36,3.05]
[1755700298833,152.06,180.58,180.36,3.05]
[1755700299033,152.06,180.58,180.4,3.05]
[1755700299338,8.2676073,180.54,180.35,3.05]
[1755700299637,152.02,180.53,180.35,3.05]
[1755700300235,8.2676073,180.49,180.35,3.05]
[1755700300631,8.2676073,180.53,180.35,3.05]
[1755700300937,152.14,180.52,180.35,3.05]
[1755700301239,160.4076073,180.52,180.35,3.05]
[1755700301439,177.1576073,180.52,180.35,3.05]
[1755700301635,177.1576073,180.52,180.3,3.05]
[1755700302129,177.1576073,180.52,180.25,3.05]
[1755700302130,152.22,180.51,180.25,3.05]
[1755700302329,152.22,180.51,180.24,8.2676073]
[1755700302330,152.22,180.51,180.27,3.05]
[1755700302536,8.2676073,180.53,180.28,3.05]
[1755700302842,8.2676073,180.53,180.32,3.05]
[1755700303035,152.3,180.52,180.42,5.5422]
[1755700303229,152.3,180.52,180.39,3.05]
[1755700304235,8.2676073,180.56,180.39,3.05]
[1755700304436,152.24,180.55,180.39,3.05]
[1755700304643,152.24,180.55,180.44,5.5416]
[1755700304935,134.27454047,180.6,180.44,3.05]
[1755700305141,133.31015083,180.6,180.44,3.05]
[1755700306435,8.2676073,180.59,180.44,3.05]
[1755700306835,8.2676073,180.59,180.35,3.05]
[1755700307042,8.2676073,180.54,180.35,3.05]
[1755700307338,8.2676073,180.49,180.35,3.05]
[1755700307641,154.08,180.48,180.35,3.05]
[1755700308043,154.08,180.48,180.37,5.5435]
[1755700308636,154.08,180.48,180.35,3.05]
[1755700308936,8.2676073,180.58,180.35,3.05]
[1755700309137,154.0,180.56,180.35,3.05]
[1755700309735,154.0,180.56,180.36,62.0]
[1755700310045,287.45015083,180.6,180.39,3.05]
[1755700310241,133.31015083,180.6,180.39,3.05]
[1755700310641,133.31015083,180.6,180.51,5.5392]
[1755700310842,133.31015083,180.6,180.48,3.05]
[1755700311140,22.79184447,180.78,180.48,3.05]
[1755700311141,8.2676073,180.69,180.48,3.05]
[1755700311442,154.26,180.68,180.48,3.05]
[1755700311635,0.96382873,180.7,180.48,11.3176073]
[1755700311941,526.7,180.73,180.53,8.2676073]
[1755700312137,9.04776671,180.9,180.53,8.2676073]
[1755700312138,372.5,180.83,180.54,3.05]
[1755700312339,8.2676073,180.81,180.64,3.05]
[1755700312645,154.5,180.8,180.64,3.05]
[1755700313236,372.5,180.83,180.64,3.05]
[1755700313546,154.78,180.82,180.64,3.05]
[1755700313847,154.78,180.82,180.68,5.5341]
[1755700314243,154.78,180.82,180.59,70.2676073]
[1755700314244,154.72,180.82,180.65,3.05]
[1755700314445,8.2676073,180.8,180.65,3.05]
[1755700315341,8.2676073,180.79,180.61,5.5362]
[1755700315543,8.2676073,180.79,180.59,3.05]
[1755700315738,0.96318849,180.81,180.59,3.05]
[1755700315940,162.9876073,180.82,180.65,2.93]
[1755700316139,163.4076073,180.82,180.65,2.93]
[1755700316344,155.14,180.82,180.67,5.5345]
[1755700316551,155.14,180.82,180.65,2.93]
[1755700317953,155.14,180.82,180.7,5.5334]
[1755700318256,155.1,180.87,180.69,2.93]
[1755700319458,155.1,180.87,180.73,5.5326]
[1755700319659,155.1,180.87,180.69,2.93]
[1755700319851,155.1,180.87,180.72,5.5331]
[1755700320051,155.1,180.87,180.69,2.93]
[1755700320961,155.1,180.87,180.71,5.5333]
[1755700321164,155.1,180.87,180.69,2.93]
[1755700321359,8.2676073,180.89,180.69,2.93]
[1755700322063,154.76,180.91,180.77,5.5313]
[1755700322358,154.76,180.91,180.7,8.2676073]
[1755700322556,154.76,180.91,180.72,2.93]